fUST/lending_fUST_20250918
["ID","MTS","AMOUNT","RATE_DAILY","PERIOD"]
[385997987,1758178251316,-500.0,0.00023773,2]
[385997988,1758178251325,-507.2,0.000238,7]
[385997989,1758178251336,-2070.27517469,0.00023817,2]
[385997990,1758178251346,-480.0,0.00023845,3]
[385997991,1758178251356,-480.0,0.00023845,3]
[385997992,1758178251367,-275.73527786,0.0002399,2]
[385997993,1758178251376,-417.15472785,0.00024,3]
[385997994,1758178251387,-835.81,0.00024019,3]
[385997995,1758178251398,-480.0,0.00024019,3]
[385997996,1758178251409,-2561.83,0.00024019,3]
[385997997,1758178251418,-480.0,0.00024019,3]
[385997998,1758178251429,-480.0,0.00024019,3]
[385997999,1758178251439,-835.81,0.00024293,3]
[385998000,1758178251449,-480.0,0.00024293,3]
[385998001,1758178251459,-2561.83,0.00024293,3]
[385998002,1758178251469,-480.0,0.00024293,3]
[385998003,1758178251479,-480.0,0.00024293,3]
[385998004,1758178251490,-521.40567582,0.00024321,2]
[385998005,1758178251500,-500.0,0.00024321,2]
[385998006,1758178251510,-1000.0,0.00024321,2]
[385998007,1758178251519,-1000.0,0.00024321,2]
[385998008,1758178251529,-1000.0,0.00024321,2]
[385998009,1758178251539,-1000.0,0.00024321,2]
[385998010,1758178251550,-152.11354485,0.00024328,2]
[385998011,1758178251562,-835.81,0.00024567,3]
[385998012,1758178251574,-480.0,0.00024567,3]
[385998013,1758178251585,-2561.83,0.00024567,3]
[385998014,1758178251594,-480.0,0.00024567,3]
[385998015,1758178251605,-480.0,0.00024567,3]
[385998016,1758178251614,-151.0,0.00024658,2]
[385998017,1758178251623,-160.0,0.0002471,2]
[385998018,1758178251634,-160.0,0.0002471,2]
[385998019,1758178251644,-1300.0,0.00024712,2]
[385998020,1758178251653,-173.067,0.00024773,8]
[385998021,1758178251662,-835.81,0.00024841,3]
[385998022,1758178251672,-480.0,0.00024841,3]
[385998023,1758178251682,-2561.83,0.00024841,3]
[385998024,1758178251691,-480.0,0.00024841,3]
[385998025,1758178251700,-480.0,0.00024841,3]
[385998026,1758178251710,-500.0,0.00024868,2]
[385998027,1758178251719,-500.0,0.00024868,2]
[385998028,1758178251728,-808.64117626,0.00024868,2]
[385998029,1758178251738,-887.09696802,0.00024868,2]
[385998030,1758178251747,-500.0,0.00024873,2]
[385998031,1758178251757,-509.9934499,0.00024873,2]
[385998032,1758178251766,-500.0,0.00024873,2]
[385998033,1758178251775,-583.32234658,0.00024873,2]
[385998034,1758178251784,-501.07766424,0.00024873,2]
[385998035,1758178251794,-226.75007981,0.00024873,2]
[385998036,1758178251803,-500.27621588,0.00024873,2]
[385998037,1758178251812,-500.0,0.00024873,2]
[385998038,1758178251822,-501.46379598,0.00024873,2]
[385998039,1758178251831,-500.0,0.00024873,2]
[385998040,1758178251841,-503.93477338,0.00024873,2]
[385998041,1758178251850,-501.95474255,0.00024873,2]
[385998042,1758178251860,-522.52390626,0.00024873,2]
[385998043,1758178251869,-265.17340167,0.00024873,2]
[385998044,1758178251878,-500.0,0.00024873,2]
[385998045,1758178251887,-500.0,0.00024873,2]
[385998046,1758178251897,-500.0,0.00024873,2]
[385998047,1758178251907,-500.0,0.00024873,2]
[385998048,1758178251916,-160.89732276,0.00024873,2]
[385998049,1758178251925,-1375.00109268,0.000249,2]
[385998050,1758178251934,-572424.8377398,0.000249,2]
[385998051,1758178251947,-140499.4728162,0.000249,2]
[385998052,1758178251956,-417.15472785,0.00025,10]
[385998053,1758178251965,-160.0,0.0002508,2]
[385998054,1758178251976,-160.0,0.0002508,2]
[385998055,1758178251988,-2166.924,0.00025089,2]
[385998056,1758178251999,-231.861,0.00025089,2]
[385998057,1758178252013,-1847.0,0.00025089,2]
[385998058,1758178252030,-835.81,0.00025115,3]
[385998059,1758178252039,-480.0,0.00025115,3]
[385998060,1758178252049,-2561.83,0.00025115,3]
[385998061,1758178252058,-480.0,0.00025115,3]
[385998062,1758178252067,-480.0,0.00025115,3]
[385998063,1758178252077,-317.0,0.00025123,15]
[385998064,1758178252087,-168.0,0.00025211,2]
[385998065,1758178252096,-420.0,0.00025328,2]
[385998066,1758178252105,-835.81,0.00025389,3]
[385998067,1758178252115,-480.0,0.00025389,3]
[385998068,1758178252124,-2561.83,0.00025389,3]
[385998069,1758178252133,-480.0,0.00025389,3]
[385998070,1758178252143,-480.0,0.00025389,3]
[385998071,1758178252152,-500.0,0.00025406,2]
[385998072,1758178252161,-160.0,0.00025413,2]
[385998073,1758178252171,-1000.0,0.00025421,2]
[385998074,1758178252180,-1000.0,0.00025421,2]
[385998075,1758178252189,-1091.07030662,0.00025421,2]
[385998076,1758178252199,-1003.94153345,0.00025421,2]
[385998077,1758178252209,-1007.27917455,0.00025421,2]
[385998078,1758178252218,-1000.0,0.00025421,2]
[385998079,1758178252227,-1000.0,0.00025421,2]
[385998080,1758178252236,-1680.0,0.00025445,2]
[385998081,1758178252246,-163.75187288,0.00025482,2]
[385998082,1758178252255,-427.10351444,0.00025494,2]
[385998083,1758178252264,-835.81,0.00025663,3]
[385998084,1758178252274,-2561.83,0.00025663,3]
[385998085,1758178252283,-480.0,0.00025663,3]
[385998086,1758178252293,-480.0,0.00025663,3]
[385998087,1758178252303,-1300.0,0.00025808,2]
[385998088,1758178252312,-47439.42998774,0.00025937,2]
[385998089,1758178252321,-835.81,0.00025937,3]
[385998090,1758178252330,-2561.83,0.00025937,3]
[385998091,1758178252339,-480.0,0.00025937,3]
[385998092,1758178252349,-480.0,0.00025937,3]
[385998093,1758178252358,-1000.0,0.00025954,2]
[385998094,1758178252367,-260.0,0.00025961,2]
[385998095,1758178252377,-1004.1962342,0.00025968,2]
[385998096,1758178252386,-504.39866036,0.00025968,2]
[385998097,1758178252395,-733.82248698,0.00025968,2]
[385998098,1758178252404,-1020.56051673,0.00025968,2]
[385998099,1758178252414,-835.81,0.00026211,3]
[385998100,1758178252423,-2561.83,0.00026211,3]
[385998101,1758178252432,-480.0,0.00026211,3]
[385998102,1758178252442,-480.0,0.00026211,3]
[385998103,1758178252451,-4501.5648859,0.00026373,2]
[385998104,1758178252460,-507.2,0.000264,7]
[385998105,1758178252469,-128828.99353512,0.0002644,2]
[385998106,1758178252479,-166.0,0.0002644,3]
[385998107,1758178252489,-166.0,0.0002644,3]
[385998108,1758178252498,-151.0,0.0002644,3]
[385998109,1758178252508,-151.0,0.0002644,3]
[385998110,1758178252517,-152.92581206,0.0002644,3]
[385998111,1758178252527,-160.158422,0.0002644,7]
[385998112,1758178252537,-217.059195,0.0002644,7]
[385998113,1758178252546,-217.059195,0.0002644,7]
[385998114,1758178252555,-217.059195,0.0002644,7]
[385998115,1758178252569,-217.059195,0.0002644,7]
[385998116,1758178252578,-151.0,0.0002644,7]
[385998117,1758178252588,-151.0,0.0002644,7]
[385998118,1758178252598,-208.95138403,0.00026473,2]
[385998119,1758178252609,-835.81,0.00026485,3]
[385998120,1758178252618,-2561.83,0.00026485,3]
[385998121,1758178252627,-480.0,0.00026485,3]
[385998122,1758178252637,-480.0,0.00026485,3]
[385998123,1758178252647,-1289.82,0.00026486,4]
[385998124,1758178252656,-301.97941425,0.000265,2]
[385998125,1758178252666,-1500.0,0.00026502,2]
[385998126,1758178252675,-360.0,0.00026509,2]
[385998127,1758178252684,-168.0,0.00026712,2]
[385998128,1758178252694,-835.81,0.00026759,3]
[385998129,1758178252703,-2561.83,0.00026759,3]
[385998130,1758178252713,-480.0,0.00026759,3]
[385998131,1758178252722,-480.0,0.00026759,3]
[385998132,1758178252732,-160.0,0.000269,5]
[385998133,1758178252743,-206.42165216,0.000269,5]
[385998134,1758178252752,-1300.0,0.00026904,2]
[385998135,1758178252762,-3069.583,0.00026914,2]
[385998136,1758178252771,-151.23981477,0.00026973,2]
[385998137,1758178252781,-150.47568243,0.00026973,2]
[385998138,1758178252790,-29440.49483771,0.00027,14]
[385998139,1758178252800,-600.0,0.00027029,20]
[385998140,1758178252810,-835.81,0.00027033,3]
[385998141,1758178252819,-2561.83,0.00027033,3]
[385998142,1758178252829,-480.0,0.00027033,3]
[385998143,1758178252838,-480.0,0.00027033,3]
[385998144,1758178252847,-2000.0,0.0002705,2]
[385998145,1758178252857,-460.0,0.00027057,2]
[385998146,1758178252867,-160.0,0.0002722,3]
[385998147,1758178252876,-160.0,0.0002722,5]
[385998148,1758178252886,-835.81,0.00027307,3]
[385998149,1758178252895,-2561.83,0.00027307,3]
[385998150,1758178252904,-480.0,0.00027307,3]
[385998151,1758178252913,-480.0,0.00027307,3]
[385998152,1758178252923,-150.54680553,0.00027397,2]
[385998153,1758178252932,-237.74900894,0.00027397,5]
[385998154,1758178252942,-587.0,0.00027485,2]
[385998155,1758178252951,-835.81,0.00027581,3]
[385998156,1758178252960,-2561.83,0.00027581,3]
[385998157,1758178252969,-480.0,0.00027581,3]
[385998158,1758178252978,-546.5170534,0.00027581,3]
[385998159,1758178252987,-2500.0,0.00027598,5]
[385998160,1758178252996,-560.0,0.00027605,2]
[385998161,1758178253006,-1658.0,0.00027739,2]
[385998162,1758178253015,-805.75637422,0.00027762,2]
[385998163,1758178253024,-500.0,0.00027843,10]
[385998164,1758178253034,-835.81,0.00027855,3]
[385998165,1758178253043,-2561.83,0.00027855,3]
[385998166,1758178253053,-480.0,0.00027855,3]
[385998167,1758178253062,-405.03650558,0.000279,2]
[385998168,1758178253071,-1154.737014,0.0002798,5]
[385998169,1758178253080,-3951.79604904,0.00028,7]
[385998170,1758178253090,-853.808355,0.00028,5]
[385998171,1758178253099,-1000.0,0.00028,5]
[385998172,1758178253108,-1300.0,0.00028,7]
[385998173,1758178253117,-163.11121919,0.00028002,120]
[385998174,1758178253127,-835.81,0.00028129,3]
[385998175,1758178253136,-2561.83,0.00028129,3]
[385998176,1758178253146,-480.0,0.00028129,3]
[385998177,1758178253156,-2499.08934692,0.00028146,5]
[385998178,1758178253166,-4205.14,0.00028148,30]
[385998179,1758178253176,-660.0,0.00028153,2]
[385998180,1758178253185,-151.0,0.00028345,6]
[385998181,1758178253195,-835.81,0.00028403,3]
[385998182,1758178253204,-2561.83,0.00028403,3]
[385998183,1758178253213,-480.0,0.00028403,3]
[385998184,1758178253222,-700.0,0.00028426,2]
[385998185,1758178253231,-1107.68096403,0.0002843,120]
[385998186,1758178253242,-500.0,0.00028441,2]
[385998187,1758178253252,-500.0,0.00028479,2]
[385998188,1758178253261,-507.2,0.000285,7]
[385998189,1758178253271,-500.0,0.00028524,2]
[385998190,1758178253280,-700.0,0.00028539,2]
[385998191,1758178253289,-700.0,0.00028558,2]
[385998192,1758178253298,-500.0,0.00028577,2]
[385998193,1758178253308,-500.0,0.00028641,2]
[385998194,1758178253318,-700.0,0.00028655,2]
[385998195,1758178253327,-835.81,0.00028676,3]
[385998196,1758178253337,-2561.83,0.00028676,3]
[385998197,1758178253347,-297.72963629,0.00028676,3]
[385998198,1758178253358,-700.0,0.0002868,2]
[385998199,1758178253369,-2000.0,0.000287,2]
[385998200,1758178253380,-760.0,0.00028701,2]
[385998201,1758178253391,-700.0,0.00028787,2]
[385998202,1758178253402,-700.0,0.00028795,2]
[385998203,1758178253412,-700.0,0.00028816,2]
[385998204,1758178253423,-700.0,0.00028822,2]
[385998205,1758178253434,-151.0,0.00028845,7]
[385998206,1758178253447,-500.0,0.00028872,2]
[385998207,1758178253459,-502.44773428,0.00028936,2]
[385998208,1758178253470,-835.81,0.0002895,3]
[385998209,1758178253481,-2561.83,0.0002895,3]
[385998210,1758178253492,-700.0,0.00028955,2]
[385998211,1758178253503,-531.6443493,0.00029,10]
[385998212,1758178253515,-160.0,0.00029,10]
[385998213,1758178253526,-405.03650552,0.00029086,2]
[385998214,1758178253633,-700.0,0.00029088,2]
[385998215,1758178253645,-700.0,0.00029176,2]
[385998216,1758178253658,-500.0,0.00029179,2]
[385998217,1758178253670,-835.81,0.00029224,3]
[385998218,1758178253680,-2561.83,0.00029224,3]
[385998219,1758178253691,-1289.82,0.00029226,6]
[385998220,1758178253701,-860.0,0.00029249,2]
[385998221,1758178253712,-700.0,0.00029265,2]
[385998222,1758178253723,-504.06242318,0.0002934,5]
[385998223,1758178253733,-500.0,0.0002934,5]
[385998224,1758178253745,-500.0,0.0002934,20]
[385998225,1758178253757,-500.0,0.0002934,5]
[385998226,1758178253766,-500.0,0.0002934,20]
[385998227,1758178253776,-500.0,0.0002934,5]
[385998228,1758178253786,-500.0,0.0002934,5]
[385998229,1758178253796,-500.0,0.0002934,5]
[385998230,1758178253805,-500.0,0.0002934,5]
[385998231,1758178253815,-500.0,0.0002934,20]
[385998232,1758178253825,-496.97826407,0.0002934,20]
[385998233,1758178253835,-500.0,0.0002934,5]
[385998234,1758178253845,-500.0,0.0002934,5]
[385998235,1758178253854,-500.0,0.0002934,5]
[385998236,1758178253864,-151.0,0.00029345,7]
[385998237,1758178253874,-500.0,0.00029372,2]
[385998238,1758178253884,-512.10455908,0.00029405,2]
[385998239,1758178253894,-835.81,0.00029498,3]
[385998240,1758178253906,-2561.83,0.00029498,3]
[385998241,1758178253916,-500.0,0.00029543,2]
[385998242,1758178253926,-157.0,0.000296,120]
[385998243,1758178253936,-700.0,0.00029621,2]
[385998244,1758178253946,-1300.0,0.00029644,7]
[385998245,1758178253956,-169.0,0.00029663,120]
[385998246,1758178253966,-711.65925616,0.00029665,2]
[385998247,1758178253975,-2000.0,0.000297,2]
[385998248,1758178253984,-201.0,0.0002971,25]
[385998249,1758178253995,-720.0,0.00029732,20]
[385998250,1758178254004,-700.0,0.00029745,2]
[385998251,1758178254014,-835.81,0.00029772,3]
[385998252,1758178254023,-2561.83,0.00029772,3]
[385998253,1758178254032,-960.0,0.00029797,2]
[385998254,1758178254042,-823.0,0.00029826,2]
[385998255,1758178254052,-151.0,0.00029846,7]
[385998256,1758178254062,-700.0,0.00029914,2]
[385998257,1758178254072,-700.0,0.00029935,2]
[385998258,1758178254082,-222.15,0.0003,120]
[385998259,1758178254091,-521.9,0.0003,10]
[385998260,1758178254101,-10000.0,0.0003,2]
[385998261,1758178254112,-159.877,0.0003,2]
[385998262,1758178254122,-616.176454,0.0003,2]
[385998263,1758178254132,-4000.0,0.0003,4]
[385998264,1758178254142,-700.0,0.00030004,7]
[385998265,1758178254151,-700.0,0.00030017,7]
[385998266,1758178254162,-700.0,0.00030037,7]
[385998267,1758178254172,-835.85852538,0.00030046,3]
[385998268,1758178254182,-2561.90546284,0.00030046,3]
[385998269,1758178254191,-5136.0,0.000301,120]
[385998270,1758178254201,-507.2,0.000301,7]
[385998271,1758178254212,-154.802696,0.00030101,3]
[385998272,1758178254222,-200.0,0.00030102,120]
[385998273,1758178254232,-284.50526012,0.0003013,2]
[385998274,1758178254242,-217.059195,0.00030136,7]
[385998275,1758178254252,-217.059195,0.00030136,7]
[385998276,1758178254263,-217.059195,0.00030136,7]
[385998277,1758178254274,-217.059195,0.00030136,7]
[385998278,1758178254283,-556.66069503,0.00030182,7]
[385998279,1758178254292,-10258.0,0.000302,2]
[385998280,1758178254304,-700.0,0.00030243,7]
[385998281,1758178254314,-12336.03043493,0.00030245,2]
[385998282,1758178254326,-279.0,0.00030274,50]
[385998283,1758178254335,-516.84,0.00030278,50]
[385998284,1758178254347,-25547.667,0.00030282,50]
[385998285,1758178254356,-151.0,0.00030282,7]
[385998286,1758178254366,-151.0,0.00030282,7]
[385998287,1758178254375,-700.0,0.00030292,7]
[385998288,1758178254385,-500.0,0.00030309,2]
[385998289,1758178254395,-500.0,0.00030309,15]
[385998290,1758178254404,-500.0,0.00030309,15]
[385998291,1758178254414,-500.0,0.00030309,15]
[385998292,1758178254423,-500.0,0.00030309,30]
[385998293,1758178254432,-500.0,0.00030309,15]
[385998294,1758178254441,-500.0,0.00030309,30]
[385998295,1758178254451,-500.0,0.00030309,2]
[385998296,1758178254460,-500.0,0.00030309,30]
[385998297,1758178254469,-470.37,0.00030309,10]
[385998298,1758178254479,-217.059195,0.00030344,7]
[385998299,1758178254488,-217.059195,0.00030344,7]
[385998300,1758178254497,-217.059195,0.00030344,7]
[385998301,1758178254507,-217.059195,0.00030344,7]
[385998302,1758178254517,-217.059195,0.00030344,7]
[385998303,1758178254526,-217.059195,0.00030344,7]
[385998304,1758178254536,-217.059195,0.00030344,7]
[385998305,1758178254545,-217.059195,0.00030344,7]
[385998306,1758178254555,-217.059195,0.00030344,7]
[385998307,1758178254567,-217.059195,0.00030344,7]
[385998308,1758178254576,-217.059195,0.00030344,7]
[385998309,1758178254586,-217.059201,0.00030344,7]
[385998310,1758178254596,-151.0,0.00030345,7]
[385998311,1758178254607,-151.0,0.00030345,7]
[385998312,1758178254617,-151.0,0.00030345,7]
[385998313,1758178254627,-151.0,0.00030345,7]
[385998314,1758178254636,-151.0,0.00030345,7]
[385998315,1758178254648,-299.782492,0.00030345,7]
[385998316,1758178254660,-1060.0,0.00030345,2]
[385998317,1758178254671,-27593.86915235,0.00030345,20]
[385998318,1758178414579,25737.5854697,0.00022826,2]
[385998319,1758178418020,173.0294115,0.00022645,2]
[385998320,1758178513680,399.53904367,0.000218,2]
[385998321,1758178542820,666.0,0.00022645,2]
[385998322,1758178549207,236.6671919,0.00022645,2]
[385998323,1758178603296,-268.8770511,0.0002334,2]
[385998324,1758178629040,6835.19227878,0.00028,30]
[385998325,1758178630678,805.56,0.0002316,2]
[385998326,1758178630706,9194.44,0.0002316,2]
[385998327,1758178637434,10000.0,0.0002316,2]
[385998328,1758178645710,10000.0,0.0002316,2]
[385998329,1758178653655,10000.0,0.0002316,2]
[385998330,1758178660433,10000.0,0.0002316,2]
[385998331,1758178665605,168.300065,0.00011322,2]
[385998333,1758178666446,10000.0,0.0002316,2]
[385998340,1758178673526,10000.0,0.0002316,2]
[385998341,1758178680909,10000.0,0.0002316,2]
[385998342,1758178706219,1000.0,0.00022645,2]
[385998343,1758178786596,739.6424971,0.00022645,2]
[385998344,1758178890398,10000.0,0.00022645,2]
[385998345,1758179006149,283.86074495,0.00022935,2]
[385998350,1758179263141,230.046281,0.00022644,2]
[385998384,1758179433557,170.6,0.00027767,120]
[385998396,1758179438662,-185.60861242,0.00023573,2]
[385998398,1758179438672,-1587.96016784,0.00023573,2]
[385998399,1758179438682,-1200.0,0.00023638,2]
[385998401,1758179438691,-300.0,0.00023639,2]
[385998403,1758179438700,-126.43121974,0.00023639,2]
[385998405,1758179438712,-173.56878026,0.00023639,2]
[385998407,1758179438721,-300.0,0.00023639,2]
[385998409,1758179438730,-300.0,0.00023639,2]
[385998412,1758179438741,-300.0,0.00023639,2]
[385998414,1758179438750,-1200.0,0.0002364,2]
[385998415,1758179438759,-480.0,0.00023643,3]
[385998418,1758179438769,-480.0,0.00023643,3]
[385998419,1758179438779,-480.0,0.00023643,3]
[385998421,1758179438788,-286.38716073,0.00023643,3]
[385998422,1758179438800,-193.61283927,0.00023643,3]
[385998423,1758179438810,-480.0,0.00023643,3]
[385998424,1758179438820,-480.0,0.00023643,3]
[385998425,1758179438829,-480.0,0.00023643,3]
[385998426,1758179438839,-480.0,0.00023643,3]
[385998427,1758179438849,-480.0,0.00023643,3]
[385998428,1758179438859,-495.19,0.00023643,3]
[385998429,1758179438868,-480.0,0.00023643,3]
[385998430,1758179438877,-480.0,0.00023643,3]
[385998431,1758179438888,-500.0,0.00023643,3]
[385998432,1758179438897,-340.73783847,0.00023643,3]
[385998433,1758179438907,-574.1,0.00023643,3]
[385998434,1758179438916,-480.0,0.00023643,3]
[385998435,1758179438926,-480.0,0.00023643,3]
[385998436,1758179438935,-480.0,0.00023643,3]
[385998437,1758179438944,-112.78001522,0.00023643,3]
[385998438,1758179438961,-367.21998478,0.00023643,3]
[385998439,1758179438970,-480.0,0.00023643,3]
[385998440,1758179438980,-480.0,0.00023643,3]
[385998441,1758179438989,-480.0,0.00023643,3]
[385998442,1758179438999,-480.0,0.00023643,3]
[385998443,1758179439009,-480.0,0.00023643,3]
[385998444,1758179439018,-480.0,0.00023643,3]
[385998445,1758179439027,-480.0,0.00023643,3]
[385998446,1758179439037,-483.73137781,0.00023643,2]
[385998447,1758179439046,-480.0,0.00023643,3]
[385998448,1758179439056,-232.14,0.00023644,3]
[385998449,1758179439066,-476.8935859,0.00023644,3]
[385998450,1758179439075,-470.74766507,0.00023644,3]
[385998451,1758179439085,-332.13415538,0.00023644,3]
[385998452,1758179439095,-465.6,0.00023644,3]
[385998453,1758179439105,-480.0,0.00023644,3]
[385998454,1758179439114,-481.70220087,0.00023644,3]
[385998455,1758179439124,-485.42354342,0.00023644,3]
[385998456,1758179439133,-483.47332138,0.00023644,3]
[385998457,1758179439142,-480.0,0.00023644,3]
[385998458,1758179439152,-480.0,0.00023644,3]
[385998459,1758179439161,-288.25823262,0.00023644,3]
[385998460,1758179439171,-480.0,0.00023644,3]
[385998461,1758179439180,-480.0,0.00023644,3]
[385998462,1758179439190,-481.5105484,0.00023644,3]
[385998463,1758179439203,-482.56420786,0.00023644,3]
[385998464,1758179439213,-480.0,0.00023644,3]
[385998465,1758179439223,-488.11726814,0.00023644,3]
[385998466,1758179439232,-480.0,0.00023644,3]
[385998467,1758179439243,-480.0,0.00023644,3]
[385998468,1758179439253,-480.0,0.00023644,3]
[385998469,1758179439263,-480.0,0.00023644,3]
[385998470,1758179439275,-480.0,0.00023644,3]
[385998471,1758179439284,-480.0,0.00023644,3]
[385998472,1758179439295,-160.0,0.00023644,3]
[385998473,1758179439304,-289.51545319,0.00023644,3]
[385998474,1758179439314,-500.0,0.00023644,3]
[385998475,1758179439324,-408.89509143,0.00023644,3]
[385998476,1758179439334,-480.0,0.00023644,3]
[385998477,1758179439444,-480.0,0.00023644,3]
[385998478,1758179439459,-480.0,0.00023644,2]
[385998479,1758179439469,-480.0,0.00023644,3]
[385998480,1758179439482,-480.0,0.00023644,3]
[385998481,1758179439497,-482.87852104,0.00023644,3]
[385998482,1758179439507,-480.0,0.00023644,3]
[385998483,1758179439518,-486.88567824,0.00023645,2]
[385998484,1758179439528,-500.0,0.00023645,3]
[385998485,1758179439538,-270.78442168,0.00023645,3]
[385998486,1758179439548,-1128.59,0.00023645,2]
[385998487,1758179439558,-500.0,0.00023645,2]
[385998488,1758179439567,-500.0,0.00023645,2]
[385998489,1758179439577,-500.0,0.00023645,2]
[385998492,1758179439586,-500.0,0.00023645,2]
[385998493,1758179439596,-500.0,0.00023645,2]
[385998494,1758179439606,-500.0,0.00023645,2]
[385998495,1758179439616,-500.0,0.00023645,2]
[385998496,1758179439625,-399.87373611,0.00023645,2]
[385998498,1758179439635,-500.0,0.00023645,2]
[385998499,1758179439644,-457.99008272,0.00023645,2]
[385998500,1758179439654,-500.0,0.00023645,2]
[385998501,1758179439664,-500.0,0.00023645,2]
[385998502,1758179439674,-500.0,0.00023645,2]
[385998503,1758179439683,-500.0,0.00023645,2]
[385998504,1758179439692,-500.0,0.00023645,2]
[385998505,1758179439702,-500.0,0.00023645,2]
[385998506,1758179439711,-500.0,0.00023645,2]
[385998507,1758179439720,-500.0,0.00023645,2]
[385998508,1758179439730,-500.0,0.00023645,2]
[385998509,1758179439739,-500.0,0.00023645,2]
[385998510,1758179439749,-500.0,0.00023645,2]
[385998511,1758179439758,-500.0,0.00023645,2]
[385998512,1758179439768,-500.0,0.00023645,2]
[385998513,1758179439777,-500.0,0.00023645,2]
[385998514,1758179439787,-500.0,0.00023645,2]
[385998515,1758179439800,-500.0,0.00023645,2]
[385998516,1758179439810,-500.0,0.00023645,2]
[385998517,1758179439820,-500.0,0.00023645,2]
[385998519,1758179439829,-447.91886832,0.00023645,2]
[385998520,1758179439838,-108198.61576871,0.00023646,2]
[385998523,1758179439851,-36521.93545723,0.00023646,2]
[385998524,1758179439862,-3559.86902232,0.00023646,2]
[385998525,1758179439873,-8300.85141343,0.00023646,2]
[385998526,1758179439906,-480.0,0.00023644,3]
[385998527,1758179439918,-13860.66758828,0.00023646,2]
[385998528,1758179439929,-324.02021364,0.00023646,2]
[385998529,1758179440089,-500.0,0.00023645,2]
[385998530,1758179440099,-320.25620568,0.00023645,2]
[385998531,1758179440108,-1456.39379435,0.00023646,2]
[385998597,1758179443209,-260.06,0.00023636,3]
[385998599,1758179443220,-359.61339358,0.00023643,3]
[385998612,1758179443341,-120.38660642,0.00023643,3]
[385998615,1758179443350,-411.07295422,0.00023644,3]
[385998920,1758179446189,-480.0,0.00023643,3]
[385998922,1758179446199,-236.53931282,0.00023643,3]
[385998924,1758179446210,-243.46068718,0.00023643,3]
[385998926,1758179446221,-480.0,0.00023643,3]
[385998928,1758179446235,-68.92704578,0.00023644,3]
[385998930,1758179446245,-480.0,0.00023644,3]
[385998932,1758179446255,-480.0,0.00023644,3]
[385998935,1758179446266,-480.0,0.00023644,3]
[385998936,1758179446276,-11480.58268311,0.00023646,2]
[385998939,1758179446287,-9090.0000002,0.00023646,2]
[385999164,1758179464148,-153.95160031,0.00023636,2]
[385999165,1758179471176,-260.57225346,0.00023636,2]
[385999166,1758179501864,250.0,0.00022327,2]
[385999181,1758179577207,157.32,0.00022327,2]
[385999183,1758179717253,500.0000001,0.00022611,2]
[385999184,1758179718535,349.2662684,0.00022611,2]
[385999185,1758179718564,650.7337316,0.00022611,2]
[385999186,1758179738226,666.0,0.00022573,2]
[385999187,1758179761883,204.040966,0.00022573,2]
[385999188,1758179803333,-300.0,0.00023543,2]
[385999189,1758179803459,-300.0,0.00023544,2]
[385999190,1758179803484,-7.60379818,0.00023544,2]
[385999191,1758179804955,-307.60379818,0.00023545,3]
[385999192,1758179806803,-292.39620182,0.00023544,2]